{"text_format":"1","workbook":"xlsx","n_sheets":1,"sheets":["Sheet1"],"not_rendered":{"charts":0,"images":4,"macros":1,"external_links":0,"defined_names":1,"comments":1,"pivot_tables":0},"unopened":[],"bounds":{"document_bytes":16777216,"sheet_cells":100000,"rows_first":2000,"rows_last":500,"rows_between":2000,"halvings":0,"cell_chars":16384,"cell_head_chars":4096},"cells_cut":0,"cells_raw":0,"read":"whole","date_system":"1900"}

{"sheet":"Sheet1","index":0,"n_rows":458,"n_cols":22,"rows_kept":458,"cut":false,"hidden":false,"merged":[[65,8,66,8],[31,9,32,9],[48,8,49,8],[65,7,66,7],[13,8,14,8],[31,8,32,8],[13,13,14,13],[13,9,14,9],[65,13,66,13],[31,13,32,13],[48,13,49,13],[65,9,66,9],[48,9,49,9],[65,4,66,4],[48,4,49,4],[48,5,48,6],[48,7,49,7],[13,7,14,7],[65,5,65,6],[31,7,32,7],[31,4,32,4],[13,4,14,4],[65,0,66,0],[65,1,66,1],[65,3,66,3],[13,0,14,0],[31,1,32,1],[31,3,32,3],[13,1,14,1],[13,2,14,2],[48,2,49,2],[48,0,49,0],[48,1,49,1],[48,3,49,3],[65,2,66,2],[31,2,32,2],[13,3,14,3],[1,2,1,6],[3,0,3,6],[5,2,5,4],[7,5,7,6],[31,5,31,6],[7,3,7,4],[9,4,9,5],[13,5,13,6],[31,0,32,0]]}
[]
["UNXXXX",null,"Salaries Schedule 2025/26"]
[]
["Click (above) \"Formulas\" then \"Calculation options\" and ensure that \"Automatic\" is selected. \n1) Please enter the dates that you propose to process your payrolls from left to right, completing one line for each Pay Period for every Payroll in each VPD.\n2) Please enter the date you intend to run your \"to pay\" payrun. (We do not require dates for Retries or Early non-pay runs)\n3) Enter 2025 dates in the format dd/mm - e.g. 28th April 2025 as 28/04. Enter 2026 dates in the format dd/mm/yy - e.g. 28/01/26\n4) If no process is planned (Retro) please leave blank.\n5) Do not include details of any supplementary payrolls on this return.\n6) Please return by Thursday 20th February 2025.\n7) Please return by email to  ESR.IS-ESRScheduling@nhs.net  include the VPD code in the email title along with Monthly.  If you process payrolls for more than one VPD, please return one spreadsheet for each VPD, in separate emails - OR Raise a Service Request and attach schedule.                                                                                                                                                                                                                                                               8) For the BACs Transmit column (i.e. Column G), if the date inputed is more than 1 day before the BACS Processing Date column (i.e. Column F), the cell would be highlighted green; if the date inpute is 1 day before the BACS Processing Date column, the cell would be highlighted amber, indicating that it may need readjustment or confirmation with IBM."]
[]
[null,"Payroll Group / Provider"]
[]
[null,"VPD:",null,"Employing Authority Name:"]
[]
[null,"Contact Name:",null,"Telephone:",null,null,null,null,null,null,null,null,null,null,null,null,null,null,null,null,null,"Yet to receive Jan's"]
[null,null,null,null,null,null,null,null,null,null,null,null,null,null,null,null,null,null,null,null,null,"001 Monthly"]
[null,"Payroll Name",null,null,null,null,null,null,null,null,null,null,null,null,null,null,null,null,null,null,null,"020 Monthly"]
[null,null,null,null,null,null,null,null,null,null,null,null,null,null,null,null,null,null,null,null,null,"025 Monthly"]
["VPD","Period Name","Payroll Name","Pay Period","Pay Day","BACS  ",null,"(Final)\nPay Run \nProcess Date (Overnight)","Retropay\n Run Date (Overnight)","OK",null,"BACS  ","Pay Run","Retropay Run Date",null,null,"For example, if the 1st bank holiday is a Monday, the 1st not available day would be the Saturday",null,null,null,null,"028_120 Monthly PHW NHST"]
["VPD",null,null,null,null,"Processing Date","Transmit (before 5 pm)",null,null,null,"Pay Day","Transmit (before 5 pm)","Process Date (Overnight)",null,null,"Month End Date","1st Not Available Day","1st Bank Holiday","2nd Bank Holiday (If only 1 repeat 1st BH)",null,null,"040 Monthly"]
[{"$f":"$C$8","v":0},"1 2025 Calendar Month","020 Monthly","2025-04-01",null,{"$f":"IF(E16<>\"\",IF(E16=(S16+1),Q16-1,IF(E16=(R16+1),Q16-1,IF(WEEKDAY(E16)=2,E16-3,E16-1))),\"\")","v":""},null,null,null,{"$f":"IF(COUNTIF(L16:N16,\"Error\")=0,\"OK\",\"\")","v":""},{"$f":"IF(OR((WEEKDAY(E16)=1),(WEEKDAY(E16)=7), (E16<D16),(P16<E16),E16=Q16,E16=R16,E16=S16),\"Error\",E16)","v":"Error"},{"$f":"IF(OR((Q16=G16),(R16=G16),(S16=G16),(G16>Q16-2)*AND(G16<S16-1)*AND(G16>(F16-(3+S16-Q16))),WEEKDAY(G16)=1,WEEKDAY(G16)=7,G16<D16,(G16>=(IF(WEEKDAY(F16)>3,F16-1,F16-3)))),\"Error\",G16)","v":{"$error":"#VALUE!"}},{"$f":"IF((G16>H16)*AND(H16>=D16),H16,\"Error\")","v":"Error"},{"$f":"IF(I16=\"\",\"ok\",IF((I16<H16)*AND(I16>=D16-14),I16,\"Error\"))","v":"ok"},null,"2025-04-30","2025-04-18","2025-04-18","2025-04-21",null,null,"043 Monthly NWSSP"]
[{"$f":"$C$8","v":0},"2 2025 Calendar Month",{"$f":"C16","v":"020 Monthly"},"2025-05-01",null,{"$f":"IF(E17<>\"\",IF(E17=(S17+1),Q17-1,IF(E17=(R17+1),Q17-1,IF(WEEKDAY(E17)=2,E17-3,E17-1))),\"\")","v":""},null,null,null,"",{"$f":"IF(OR((WEEKDAY(E17)=1),(WEEKDAY(E17)=7), (E17<D17),(P17<E17),E17=Q17,E17=R17,E17=S17),\"Error\",E17)","v":"Error"},{"$f":"IF(OR((Q17=G17),(R17=G17),(S17=G17),(G17>Q17-2)*AND(G17<S17-1)*AND(G17>(F17-(3+S17-Q17))),WEEKDAY(G17)=1,WEEKDAY(G17)=7,G17<D17,(G17>=(IF(WEEKDAY(F17)>3,F17-1,F17-3)))),\"Error\",G17)","v":{"$error":"#VALUE!"}},"Error","ok",null,"2025-05-31","2025-05-24","2025-05-26","2025-05-26",null,null,"044 Monthly Kings IFM"]
[0,"3 2025 Calendar Month",{"$f":"C17","v":"020 Monthly"},"2025-06-01",null,{"$f":"IF(E18<>\"\",IF(E18=(S18+1),Q18-1,IF(E18=(R18+1),Q18-1,IF(WEEKDAY(E18)=2,E18-3,E18-1))),\"\")","v":""},null,null,null,"","Error",{"$error":"#VALUE!"},"Error","ok",null,"2025-06-30",null,null,null,null,null,"050 Monthly"]
[0,"4 2025 Calendar Month","020 Monthly","2025-07-01",null,"",null,null,null,"","Error",{"$error":"#VALUE!"},"Error","ok",null,"2025-07-31",null,null,null,null,null,"066 Monthly SASOT ICB"]
[0,"5 2025 Calendar Month","020 Monthly","2025-08-01",null,"",null,null,null,"","Error",{"$error":"#VALUE!"},"Error","ok",null,"2025-08-31","2025-08-23","2025-08-25","2025-08-25",null,null,"067 Monthly"]
[0,"6 2025 Calendar Month","020 Monthly","2025-09-01",null,"",null,null,null,"","Error",{"$error":"#VALUE!"},"Error","ok",null,"2025-09-30",null,null,null,null,null,"070 Monthly"]
[0,"7 2025 Calendar Month","020 Monthly","2025-10-01",null,"",null,null,null,"","Error",{"$error":"#VALUE!"},"Error","ok",null,"2025-10-31",null,null,null,null,null,"071 Monthly Engie"]
[0,"8 2025 Calendar Month","020 Monthly","2025-11-01",null,"",null,null,null,"","Error",{"$error":"#VALUE!"},"Error","ok",null,"2025-11-30",null,null,null,null,null,"071 Monthly Mitie"]
[0,"9 2025 Calendar Month","020 Monthly","2025-12-01",null,"",null,null,null,"","Error",{"$error":"#VALUE!"},"Error","ok",null,"2025-12-31","2025-12-25","2025-12-25","2025-12-26",null,null,"072 Monthly"]
[0,"10 2026 Calendar Month","020 Monthly","2026-01-01",null,"",null,null,null,"","Error",{"$error":"#VALUE!"},"Error","ok",null,"2026-01-31","2026-01-01","2026-01-01","2026-01-01",null,null,"074 Monthly"]
[0,"11 2026 Calendar Month","020 Monthly","2026-02-01",null,"",null,null,null,"","Error",{"$error":"#VALUE!"},"Error","ok",null,"2026-02-28",null,null,null,null,null,"076 Monthly NHS CFA"]
[0,"12 2026 Calendar Month","020 Monthly","2026-03-01",null,"",null,null,null,"","Error",{"$error":"#VALUE!"},"Error","ok",null,"2026-03-31",null,null,null,null,null,"077 Monthly"]
[null,null,null,null,null,null,null,null,null,null,null,null,null,null,null,null,null,null,null,null,null,"078 Monthly 8317"]
[null,null,null,null,null,null,null,null,null,null,null,null,null,null,null,null,null,null,null,null,null,"078 Monthly 8528"]
[null,"Payroll Name",null,null,null,null,null,null,null,null,null,null,null,null,null,null,null,null,null,null,null,"078 Monthly 9760"]
[null,null,null,null,null,null,null,null,null,null,null,null,null,null,null,null,null,null,null,null,null,"082 Monthly HEIW"]
["VPD","Period Name","Payroll Name","Pay Period","Pay Day","BACS  ",null,"(Final)\nPay Run \nProcess Date (Overnight)","Retropay\n Run Date (Overnight)","OK",null,"BACS  ","Pay Run","Retropay Run Date",null,null,null,null,null,null,null,"083 Monthly"]
["VPD",null,null,null,null,"Processing Date","Transmit (before 5 pm)",null,null,null,"Pay Day","Transmit (before 5 pm)","Process Date (Overnight)",null,null,"Month End Date","1st Not Available Day","1st Bank Holiday","2nd Bank Holiday (If only 1 repeat 1st BH)",null,null,"085 Monthly"]
[{"$f":"$C$8","v":0},"1 2025 Calendar Month","001 Monthly","2025-04-01",null,{"$f":"IF(E34<>\"\",IF(E34=(S34+1),Q34-1,IF(E34=(R34+1),Q34-1,IF(WEEKDAY(E34)=2,E34-3,E34-1))),\"\")","v":""},null,null,null,{"$f":"IF(COUNTIF(L34:N34,\"Error\")=0,\"OK\",\"\")","v":""},{"$f":"IF(OR((WEEKDAY(E34)=1),(WEEKDAY(E34)=7), (E34<D34),(P34<E34),E34=Q34,E34=R34,E34=S34),\"Error\",E34)","v":"Error"},{"$f":"IF(OR((Q34=G34),(R34=G34),(S34=G34),(G34>Q34-2)*AND(G34<S34-1)*AND(G34>(F34-(3+S34-Q34))),WEEKDAY(G34)=1,WEEKDAY(G34)=7,G34<D34,(G34>=(IF(WEEKDAY(F34)>3,F34-1,F34-3)))),\"Error\",G34)","v":{"$error":"#VALUE!"}},{"$f":"IF((G34>H34)*AND(H34>=D34),H34,\"Error\")","v":"Error"},{"$f":"IF(I34=\"\",\"ok\",IF((I34<H34)*AND(I34>=D34-14),I34,\"Error\"))","v":"ok"},null,"2025-04-30","2025-04-18","2025-04-18","2025-04-21",null,null,"086 Northamptonshire Monthly"]
[{"$f":"$C$8","v":0},"2 2025 Calendar Month",{"$f":"C34","v":"001 Monthly"},"2025-05-01",null,{"$f":"IF(E35<>\"\",IF(E35=(S35+1),Q35-1,IF(E35=(R35+1),Q35-1,IF(WEEKDAY(E35)=2,E35-3,E35-1))),\"\")","v":""},null,null,null,"",{"$f":"IF(OR((WEEKDAY(E35)=1),(WEEKDAY(E35)=7), (E35<D35),(P35<E35),E35=Q35,E35=R35,E35=S35),\"Error\",E35)","v":"Error"},{"$f":"IF(OR((Q35=G35),(R35=G35),(S35=G35),(G35>Q35-2)*AND(G35<S35-1)*AND(G35>(F35-(3+S35-Q35))),WEEKDAY(G35)=1,WEEKDAY(G35)=7,G35<D35,(G35>=(IF(WEEKDAY(F35)>3,F35-1,F35-3)))),\"Error\",G35)","v":{"$error":"#VALUE!"}},"Error","ok",null,"2025-05-31","2025-05-03","2025-05-05","2025-05-26",null,null,"095 Monthly Swale CCG"]
[0,"3 2025 Calendar Month",{"$f":"C35","v":"001 Monthly"},"2025-06-01",null,"",null,null,null,"","Error",{"$error":"#VALUE!"},"Error","ok",null,"2025-06-30",null,null,null,null,null,"096 COLLAB BANK MONTHLY"]
[0,"4 2025 Calendar Month","001 Monthly","2025-07-01",null,"",null,null,null,"","Error",{"$error":"#VALUE!"},"Error","ok",null,"2025-07-31",null,null,null,null,null,"096 DEANERY STHK MONTHLY"]
[0,"5 2025 Calendar Month","001 Monthly","2025-08-01",null,"",null,null,null,"","Error",{"$error":"#VALUE!"},"Error","ok",null,"2025-08-31","2025-08-23","2025-08-25","2025-08-25",null,null,"096 East Mids Monthly"]
[0,"6 2025 Calendar Month","001 Monthly","2025-09-01",null,"",null,null,null,"","Error",{"$error":"#VALUE!"},"Error","ok",null,"2025-09-30",null,null,null,null,null,"096 East of England Monthly"]
[0,"7 2025 Calendar Month","001 Monthly","2025-10-01",null,"",null,null,null,"","Error",{"$error":"#VALUE!"},"Error","ok",null,"2025-10-31",null,null,null,null,null,"096 Monthly Lead Employer"]
[0,"8 2025 Calendar Month","001 Monthly","2025-11-01",null,"",null,null,null,"","Error",{"$error":"#VALUE!"},"Error","ok",null,"2025-11-30",null,null,null,null,null,"096 WEST MID GP MONTHLY"]
[0,"9 2025 Calendar Month","001 Monthly","2025-12-01",null,"",null,null,null,"","Error",{"$error":"#VALUE!"},"Error","ok",null,"2025-12-31","2025-12-25","2025-12-25","2025-12-26",null,null,"098 Monthly"]
[0,"10 2026 Calendar Month","001 Monthly","2026-01-01",null,"",null,null,null,"","Error",{"$error":"#VALUE!"},"Error","ok",null,"2026-01-31","2026-01-01","2026-01-01","2026-01-01",null,null,"100 Monthly"]
[0,"11 2026 Calendar Month","001 Monthly","2026-02-01",null,"",null,null,null,"","Error",{"$error":"#VALUE!"},"Error","ok",null,"2026-02-28",null,null,null,null,null,"101 Monthly"]
[0,"12 2026 Calendar Month","001 Monthly","2026-03-01",null,"",null,null,null,"","Error",{"$error":"#VALUE!"},"Error","ok",null,"2026-03-31",null,null,null,null,null,"103 Monthly"]
[null,null,null,null,null,null,null,null,null,null,null,null,null,null,null,null,null,null,null,null,null,"104 Monthly"]
[null,"Payroll Name",null,null,null,null,null,null,null,null,null,null,null,null,null,null,null,null,null,null,null,"105 Monthly"]
[null,null,null,null,null,null,null,null,null,null,null,null,null,null,null,null,null,null,null,null,null,"106 Monthly NHS Worcester CCG"]
["VPD","Period Name","Payroll Name","Pay Period","Pay Day","BACS  ",null,"(Final)\nPay Run \nProcess Date (Overnight)","Retropay\n Run Date (Overnight)","OK",null,"BACS  ","Pay Run","Retropay Run Date",null,null,null,null,null,null,null,"108 Monthly"]
["VPD",null,null,null,null,"Processing Date","Transmit (before 5 pm)",null,null,null,"Pay Day","Transmit (before 5 pm)","Process Date (Overnight)",null,null,"Month End Date","1st Not Available Day","1st Bank Holiday","2nd Bank Holiday (If only 1 repeat 1st BH)",null,null,"110 Monthly"]
[{"$f":"$C$8","v":0},"1 2025 Calendar Month","","2025-04-01",null,{"$f":"IF(E51<>\"\",IF(E51=(S51+1),Q51-1,IF(E51=(R51+1),Q51-1,IF(WEEKDAY(E51)=2,E51-3,E51-1))),\"\")","v":""},null,null,null,{"$f":"IF(COUNTIF(L51:N51,\"Error\")=0,\"OK\",\"\")","v":""},{"$f":"IF(OR((WEEKDAY(E51)=1),(WEEKDAY(E51)=7), (E51<D51),(P51<E51),E51=Q51,E51=R51,E51=S51),\"Error\",E51)","v":"Error"},{"$f":"IF(OR((Q51=G51),(R51=G51),(S51=G51),(G51>Q51-2)*AND(G51<S51-1)*AND(G51>(F51-(3+S51-Q51))),WEEKDAY(G51)=1,WEEKDAY(G51)=7,G51<D51,(G51>=(IF(WEEKDAY(F51)>3,F51-1,F51-3)))),\"Error\",G51)","v":{"$error":"#VALUE!"}},{"$f":"IF((G51>H51)*AND(H51 >= D51),H51,\"Error\")","v":"Error"},{"$f":"IF(I51=\"\",\"ok\",IF((I51<H51)*AND(I51>=D51-14),I51,\"Error\"))","v":"ok"},null,"2025-04-30","2025-04-18","2025-04-18","2025-04-21",null,null,"110 WHSSC Monthly"]
[{"$f":"$C$8","v":0},"2 2025 Calendar Month",{"$f":"C51","v":""},"2025-05-01",null,{"$f":"IF(E52<>\"\",IF(E52=(S52+1),Q52-1,IF(E52=(R52+1),Q52-1,IF(WEEKDAY(E52)=2,E52-3,E52-1))),\"\")","v":""},null,null,null,"",{"$f":"IF(OR((WEEKDAY(E52)=1),(WEEKDAY(E52)=7), (E52<D52),(P52<E52),E52=Q52,E52=R52,E52=S52),\"Error\",E52)","v":"Error"},{"$f":"IF(OR((Q52=G52),(R52=G52),(S52=G52),(G52>Q52-2)*AND(G52<S52-1)*AND(G52>(F52-(3+S52-Q52))),WEEKDAY(G52)=1,WEEKDAY(G52)=7,G52<D52,(G52>=(IF(WEEKDAY(F52)>3,F52-1,F52-3)))),\"Error\",G52)","v":{"$error":"#VALUE!"}},"Error","ok",null,"2025-05-31","2025-05-03","2025-05-05","2025-05-26",null,null,"111 Monthly"]
[0,"3 2025 Calendar Month",{"$f":"C52","v":""},"2025-06-01",null,"",null,null,null,"","Error",{"$error":"#VALUE!"},"Error","ok",null,"2025-06-30",null,null,null,null,null,"116 Monthly"]
[0,"4 2025 Calendar Month","","2025-07-01",null,"",null,null,null,"","Error",{"$error":"#VALUE!"},"Error","ok",null,"2025-07-31",null,null,null,null,null,"117 Liverpool CCG Monthly"]
[0,"5 2025 Calendar Month","","2025-08-01",null,"",null,null,null,"","Error",{"$error":"#VALUE!"},"Error","ok",null,"2025-08-31","2025-08-23","2025-08-25","2025-08-25",null,null,"118 Monthly BCICB"]
[0,"6 2025 Calendar Month","","2025-09-01",null,"",null,null,null,"","Error",{"$error":"#VALUE!"},"Error","ok",null,"2025-09-30",null,null,null,null,null,"120 Monthly"]
[0,"7 2025 Calendar Month","","2025-10-01",null,"",null,null,null,"","Error",{"$error":"#VALUE!"},"Error","ok",null,"2025-10-31",null,null,null,null,null,"122 Monthly"]
[0,"8 2025 Calendar Month","","2025-11-01",null,"",null,null,null,"","Error",{"$error":"#VALUE!"},"Error","ok",null,"2025-11-30",null,null,null,null,null,"124 Monthly"]
[0,"9 2025 Calendar Month","","2025-12-01",null,"",null,null,null,"","Error",{"$error":"#VALUE!"},"Error","ok",null,"2025-12-31","2025-12-25","2025-12-25","2025-12-26",null,null,"125 Monthly"]
[0,"10 2026 Calendar Month","","2026-01-01",null,"",null,null,null,"","Error",{"$error":"#VALUE!"},"Error","ok",null,"2026-01-31","2026-01-01","2026-01-01","2026-01-01",null,null,"126 Monthly"]
[0,"11 2026 Calendar Month","","2026-02-01",null,"",null,null,null,"","Error",{"$error":"#VALUE!"},"Error","ok",null,"2026-02-28",null,null,null,null,null,"129 Monthly"]
[0,"12 2026 Calendar Month","","2026-03-01",null,"",null,null,null,"","Error",{"$error":"#VALUE!"},"Error","ok",null,"2026-03-31",null,null,null,null,null,"130 Monthly"]
[null,null,null,null,null,null,null,null,null,null,null,null,null,null,null,null,null,null,null,null,null,"131 Monthly"]
[null,"Payroll Name",null,null,null,null,null,null,null,null,null,null,null,null,null,null,null,null,null,null,null,"132 Monthly"]
[null,null,null,null,null,null,null,null,null,null,null,null,null,null,null,null,null,null,null,null,null,"133 Monthly"]
["VPD","Period Name","Payroll Name","Pay Period","Pay Day","BACS  ",null,"(Final)\nPay Run \nProcess Date (Overnight)","Retropay\n Run Date (Overnight)","OK",null,"BACS  ","Pay Run","Retropay Run Date",null,null,null,null,null,null,null,"134 Monthly NE & NC ICB"]
["VPD",null,null,null,null,"Processing Date","Transmit (before 5 pm)",null,null,null,"Pay Day","Transmit (before 5 pm)","Process Date (Overnight)",null,null,"Month End Date","1st Not Available Day","1st Bank Holiday","2nd Bank Holiday (If only 1 repeat 1st BH)",null,null,"137 Monthly NHS Norfolk & Waveney ICB"]
[{"$f":"$C$8","v":0},"1 2025 Calendar Month","","2025-04-01",null,{"$f":"IF(E68<>\"\",IF(E68=(S68+1),Q68-1,IF(E68=(R68+1),Q68-1,IF(WEEKDAY(E68)=2,E68-3,E68-1))),\"\")","v":""},null,null,null,{"$f":"IF(COUNTIF(L68:N68,\"Error\")=0,\"OK\",\"\")","v":""},{"$f":"IF(OR((WEEKDAY(E68)=1),(WEEKDAY(E68)=7), (E68<D68),(P68<E68),E68=Q68,E68=R68,E68=S68),\"Error\",E68)","v":"Error"},{"$f":"IF(OR((Q68=G68),(R68=G68),(S68=G68),(G68>Q68-2)*AND(G68<S68-1)*AND(G68>(F68-(3+S68-Q68))),WEEKDAY(G68)=1,WEEKDAY(G68)=7,G68<D68,(G68>=(IF(WEEKDAY(F68)>3,F68-1,F68-3)))),\"Error\",G68)","v":{"$error":"#VALUE!"}},{"$f":"IF((G68>H68)*AND(H68>= D68),H68,\"Error\")","v":"Error"},{"$f":"IF(I68=\"\",\"ok\",IF((I68<H68)*AND(I68>=D68-14),I68,\"Error\"))","v":"ok"},null,"2025-04-30","2025-04-18","2025-04-18","2025-04-21",null,null,"144 Monthly NEW Devon CCG"]
[{"$f":"$C$8","v":0},"2 2025 Calendar Month",{"$f":"C68","v":""},"2025-05-01",null,{"$f":"IF(E69<>\"\",IF(E69=(S69+1),Q69-1,IF(E69=(R69+1),Q69-1,IF(WEEKDAY(E69)=2,E69-3,E69-1))),\"\")","v":""},null,null,null,"",{"$f":"IF(OR((WEEKDAY(E69)=1),(WEEKDAY(E69)=7), (E69<D69),(P69<E69),E69=Q69,E69=R69,E69=S69),\"Error\",E69)","v":"Error"},{"$f":"IF(OR((Q69=G69),(R69=G69),(S69=G69),(G69>Q69-2)*AND(G69<S69-1)*AND(G69>(F69-(3+S69-Q69))),WEEKDAY(G69)=1,WEEKDAY(G69)=7,G69<D69,(G69>=(IF(WEEKDAY(F69)>3,F69-1,F69-3)))),\"Error\",G69)","v":{"$error":"#VALUE!"}},"Error","ok",null,"2025-05-31","2025-05-03","2025-05-05","2025-05-26",null,null,"147 Monthly"]
[0,"3 2025 Calendar Month",{"$f":"C69","v":""},"2025-06-01",null,"",null,null,null,"","Error",{"$error":"#VALUE!"},"Error","ok",null,"2025-06-30",null,null,null,null,null,"150_753 Monthly"]
[0,"4 2025 Calendar Month","","2025-07-01",null,"",null,null,null,"","Error",{"$error":"#VALUE!"},"Error","ok",null,"2025-07-31",null,null,null,null,null,"151 Monthly"]
[0,"5 2025 Calendar Month","","2025-08-01",null,"",null,null,null,"","Error",{"$error":"#VALUE!"},"Error","ok",null,"2025-08-31","2025-08-23","2025-08-25","2025-08-25",null,null,"152 Monthly"]
[0,"6 2025 Calendar Month","","2025-09-01",null,"",null,null,null,"","Error",{"$error":"#VALUE!"},"Error","ok",null,"2025-09-30",null,null,null,null,null,"152_532 Monthly WHT"]
[0,"7 2025 Calendar Month","","2025-10-01",null,"",null,null,null,"","Error",{"$error":"#VALUE!"},"Error","ok",null,"2025-10-31",null,null,null,null,null,"153 Monthly"]
[0,"8 2025 Calendar Month","","2025-11-01",null,"",null,null,null,"","Error",{"$error":"#VALUE!"},"Error","ok",null,"2025-11-30",null,null,null,null,null,"155 Monthly"]
[0,"9 2025 Calendar Month","","2025-12-01",null,"",null,null,null,"","Error",{"$error":"#VALUE!"},"Error","ok",null,"2025-12-31","2025-12-25","2025-12-25","2025-12-26",null,null,"155 Monthly STICL"]
[0,"10 2026 Calendar Month","","2026-01-01",null,"",null,null,null,"","Error",{"$error":"#VALUE!"},"Error","ok",null,"2026-01-31","2026-01-01","2026-01-01","2026-01-01",null,null,"156 Monthly"]
[0,"11 2026 Calendar Month","","2026-02-01",null,"",null,null,null,"","Error",{"$error":"#VALUE!"},"Error","ok",null,"2026-02-28",null,null,null,null,null,"158 Monthly"]
[0,"12 2026 Calendar Month","","2026-03-01",null,"",null,null,null,"","Error",{"$error":"#VALUE!"},"Error","ok",null,"2026-03-31",null,null,null,null,null,"159 Monthly"]
[null,null,null,null,null,{"$f":"IF(E80<>\"\",IF(E80=(S80+1),Q80-1,IF(E80=(R80+1),Q80-1,IF(WEEKDAY(E80)=2,E80-3,E80-1))),\"\")","v":""},null,null,null,null,null,null,null,null,null,null,null,null,null,null,null,"160 Monthly"]
[null,null,null,null,null,null,null,null,null,null,null,null,null,null,null,null,null,null,null,null,null,"161 Monthly"]
[null,null,null,null,null,null,null,null,null,null,null,null,null,null,null,null,null,null,null,null,null,"162 Monthly"]
[null,null,null,null,null,null,null,null,null,null,null,null,null,null,null,null,null,null,null,null,null,"163 Monthly"]
[null,null,null,null,null,null,null,null,null,null,null,null,null,null,null,null,null,null,null,null,null,"163 Monthly BFS"]
[null,null,null,null,null,null,null,null,null,null,null,null,null,null,null,null,null,null,null,null,null,"164 Monthly"]
[null,null,null,null,null,null,null,null,null,null,null,null,null,null,null,null,null,null,null,null,null,"165 Monthly"]
[null,null,null,null,null,null,null,null,null,null,null,null,null,null,null,null,null,null,null,null,null,"166 CRH Monthly"]
[null,null,null,null,null,null,null,null,null,null,null,null,null,null,null,null,null,null,null,null,null,"166 DSFS Monthly"]
[null,null,null,null,null,null,null,null,null,null,null,null,null,null,null,null,null,null,null,null,null,"173 CPP Monthly"]
[null,null,null,null,null,null,null,null,null,null,null,null,null,null,null,null,null,null,null,null,null,"173 Monthly"]
[null,null,null,null,null,null,null,null,null,null,null,null,null,null,null,null,null,null,null,null,null,"174 Monthly"]
[null,null,null,null,null,null,null,null,null,null,null,null,null,null,null,null,null,null,null,null,null,"175 Monthly"]
[null,null,null,null,null,null,null,null,null,null,null,null,null,null,null,null,null,null,null,null,null,"176 Monthly"]
[null,null,null,null,null,null,null,null,null,null,null,null,null,null,null,null,null,null,null,null,null,"177 Monthly"]
[null,null,null,null,null,null,null,null,null,null,null,null,null,null,null,null,null,null,null,null,null,"179 Monthly"]
[null,null,null,null,null,null,null,null,null,null,null,null,null,null,null,null,null,null,null,null,null,"180 Monthly"]
[null,null,null,null,null,null,null,null,null,null,null,null,null,null,null,null,null,null,null,null,null,"184 Mid Monthly"]
[null,null,null,null,null,null,null,null,null,null,null,null,null,null,null,null,null,null,null,null,null,"184 Monthly"]
[null,null,null,null,null,null,null,null,null,null,null,null,null,null,null,null,null,null,null,null,null,"185 Monthly"]
[null,null,null,null,null,null,null,null,null,null,null,null,null,null,null,null,null,null,null,null,null,"186 Monthly"]
[null,null,null,null,null,null,null,null,null,null,null,null,null,null,null,null,null,null,null,null,null,"188 Monthly2"]
[null,null,null,null,null,null,null,null,null,null,null,null,null,null,null,null,null,null,null,null,null,"188-UEL Monthly"]
[null,null,null,null,null,null,null,null,null,null,null,null,null,null,null,null,null,null,null,null,null,"188-WPL Monthly"]
[null,null,null,null,null,null,null,null,null,null,null,null,null,null,null,null,null,null,null,null,null,"190 Monthly"]
[null,null,null,null,null,null,null,null,null,null,null,null,null,null,null,null,null,null,null,null,null,"192 Monthly"]
[null,null,null,null,null,null,null,null,null,null,null,null,null,null,null,null,null,null,null,null,null,"193 Monthly"]
[null,null,null,null,null,null,null,null,null,null,null,null,null,null,null,null,null,null,null,null,null,"195 Monthly"]
[null,null,null,null,null,null,null,null,null,null,null,null,null,null,null,null,null,null,null,null,null,"195 Monthly Fleet"]
[null,null,null,null,null,null,null,null,null,null,null,null,null,null,null,null,null,null,null,null,null,"196 Monthly"]
[null,null,null,null,null,null,null,null,null,null,null,null,null,null,null,null,null,null,null,null,null,"197 Monthly"]
[null,null,null,null,null,null,null,null,null,null,null,null,null,null,null,null,null,null,null,null,null,"199 Monthly"]
[null,null,null,null,null,null,null,null,null,null,null,null,null,null,null,null,null,null,null,null,null,"200 Monthly"]
[null,null,null,null,null,null,null,null,null,null,null,null,null,null,null,null,null,null,null,null,null,"201 Monthly"]
[null,null,null,null,null,null,null,null,null,null,null,null,null,null,null,null,null,null,null,null,null,"202 Monthly"]
[null,null,null,null,null,null,null,null,null,null,null,null,null,null,null,null,null,null,null,null,null,"203 Innovate Monthly"]
[null,null,null,null,null,null,null,null,null,null,null,null,null,null,null,null,null,null,null,null,null,"203 Innovate Monthly 2"]
[null,null,null,null,null,null,null,null,null,null,null,null,null,null,null,null,null,null,null,null,null,"203 Monthly"]
[null,null,null,null,null,null,null,null,null,null,null,null,null,null,null,null,null,null,null,null,null,"205 Monthly"]
[null,null,null,null,null,null,null,null,null,null,null,null,null,null,null,null,null,null,null,null,null,"208 Monthly"]
[null,null,null,null,null,null,null,null,null,null,null,null,null,null,null,null,null,null,null,null,null,"209 Monthly"]
[null,null,null,null,null,null,null,null,null,null,null,null,null,null,null,null,null,null,null,null,null,"210 Monthly"]
[null,null,null,null,null,null,null,null,null,null,null,null,null,null,null,null,null,null,null,null,null,"213 Monthly"]
[null,null,null,null,null,null,null,null,null,null,null,null,null,null,null,null,null,null,null,null,null,"214 Monthly"]
[null,null,null,null,null,null,null,null,null,null,null,null,null,null,null,null,null,null,null,null,null,"216 Monthly"]
[null,null,null,null,null,null,null,null,null,null,null,null,null,null,null,null,null,null,null,null,null,"217 Monthly New"]
[null,null,null,null,null,null,null,null,null,null,null,null,null,null,null,null,null,null,null,null,null,"218 Monthly"]
[null,null,null,null,null,null,null,null,null,null,null,null,null,null,null,null,null,null,null,null,null,"220 Monthly"]
[null,null,null,null,null,null,null,null,null,null,null,null,null,null,null,null,null,null,null,null,null,"222 Monthly 2"]
[null,null,null,null,null,null,null,null,null,null,null,null,null,null,null,null,null,null,null,null,null,"223 Monthly"]
[null,null,null,null,null,null,null,null,null,null,null,null,null,null,null,null,null,null,null,null,null,"224 Monthly"]
[null,null,null,null,null,null,null,null,null,null,null,null,null,null,null,null,null,null,null,null,null,"225 Monthly"]
[null,null,null,null,null,null,null,null,null,null,null,null,null,null,null,null,null,null,null,null,null,"228 Monthly CHoICE"]
[null,null,null,null,null,null,null,null,null,null,null,null,null,null,null,null,null,null,null,null,null,"229 Monthly"]
[null,null,null,null,null,null,null,null,null,null,null,null,null,null,null,null,null,null,null,null,null,"230 Monthly"]
[null,null,null,null,null,null,null,null,null,null,null,null,null,null,null,null,null,null,null,null,null,"232 Monthly"]
[null,null,null,null,null,null,null,null,null,null,null,null,null,null,null,null,null,null,null,null,null,"234 Monthly"]
[null,null,null,null,null,null,null,null,null,null,null,null,null,null,null,null,null,null,null,null,null,"236 Monthly"]
[null,null,null,null,null,null,null,null,null,null,null,null,null,null,null,null,null,null,null,null,null,"241 Bolton Hospice"]
[null,null,null,null,null,null,null,null,null,null,null,null,null,null,null,null,null,null,null,null,null,"241 Monthly"]
[null,null,null,null,null,null,null,null,null,null,null,null,null,null,null,null,null,null,null,null,null,"241 Monthly iFM Bolton"]
[null,null,null,null,null,null,null,null,null,null,null,null,null,null,null,null,null,null,null,null,null,"242 Monthly"]
[null,null,null,null,null,null,null,null,null,null,null,null,null,null,null,null,null,null,null,null,null,"245 Monthly"]
[null,null,null,null,null,null,null,null,null,null,null,null,null,null,null,null,null,null,null,null,null,"246 Monthly"]
[null,null,null,null,null,null,null,null,null,null,null,null,null,null,null,null,null,null,null,null,null,"247 Monthly"]
[null,null,null,null,null,null,null,null,null,null,null,null,null,null,null,null,null,null,null,null,null,"249 Monthly"]
[null,null,null,null,null,null,null,null,null,null,null,null,null,null,null,null,null,null,null,null,null,"251 Monthly"]
[null,null,null,null,null,null,null,null,null,null,null,null,null,null,null,null,null,null,null,null,null,"251 Monthly HHCS Ltd"]
[null,null,null,null,null,null,null,null,null,null,null,null,null,null,null,null,null,null,null,null,null,"251 Monthly Hospice"]
[null,null,null,null,null,null,null,null,null,null,null,null,null,null,null,null,null,null,null,null,null,"252 Monthly"]
[null,null,null,null,null,null,null,null,null,null,null,null,null,null,null,null,null,null,null,null,null,"253 Monthly"]
[null,null,null,null,null,null,null,null,null,null,null,null,null,null,null,null,null,null,null,null,null,"256 Surrey Downs"]
[null,null,null,null,null,null,null,null,null,null,null,null,null,null,null,null,null,null,null,null,null,"259 Monthly"]
[null,null,null,null,null,null,null,null,null,null,null,null,null,null,null,null,null,null,null,null,null,"260 Monthly"]
[null,null,null,null,null,null,null,null,null,null,null,null,null,null,null,null,null,null,null,null,null,"262 Monthly NCM"]
[null,null,null,null,null,null,null,null,null,null,null,null,null,null,null,null,null,null,null,null,null,"263 Monthly"]
[null,null,null,null,null,null,null,null,null,null,null,null,null,null,null,null,null,null,null,null,null,"263 NTW Solutions"]
[null,null,null,null,null,null,null,null,null,null,null,null,null,null,null,null,null,null,null,null,null,"264 Monthly"]
[null,null,null,null,null,null,null,null,null,null,null,null,null,null,null,null,null,null,null,null,null,"265 Monthly"]
[null,null,null,null,null,null,null,null,null,null,null,null,null,null,null,null,null,null,null,null,null,"267 Monthly"]
[null,null,null,null,null,null,null,null,null,null,null,null,null,null,null,null,null,null,null,null,null,"269 Monthly"]
[null,null,null,null,null,null,null,null,null,null,null,null,null,null,null,null,null,null,null,null,null,"270 Monthly"]
[null,null,null,null,null,null,null,null,null,null,null,null,null,null,null,null,null,null,null,null,null,"271 Monthly"]
[null,null,null,null,null,null,null,null,null,null,null,null,null,null,null,null,null,null,null,null,null,"272 Monthly"]
[null,null,null,null,null,null,null,null,null,null,null,null,null,null,null,null,null,null,null,null,null,"272 Monthly Doncaster & Bassetlaw HC Services Ltd"]
[null,null,null,null,null,null,null,null,null,null,null,null,null,null,null,null,null,null,null,null,null,"273 Monthly Charity"]
[null,null,null,null,null,null,null,null,null,null,null,null,null,null,null,null,null,null,null,null,null,"273 Monthly Friends"]
[null,null,null,null,null,null,null,null,null,null,null,null,null,null,null,null,null,null,null,null,null,"273 Monthly MEH"]
[null,null,null,null,null,null,null,null,null,null,null,null,null,null,null,null,null,null,null,null,null,"274 Monthly"]
[null,null,null,null,null,null,null,null,null,null,null,null,null,null,null,null,null,null,null,null,null,"275 Monthly"]
[null,null,null,null,null,null,null,null,null,null,null,null,null,null,null,null,null,null,null,null,null,"276 Monthly"]
[null,null,null,null,null,null,null,null,null,null,null,null,null,null,null,null,null,null,null,null,null,"277 Monthly"]
[null,null,null,null,null,null,null,null,null,null,null,null,null,null,null,null,null,null,null,null,null,"278 Monthly"]
[null,null,null,null,null,null,null,null,null,null,null,null,null,null,null,null,null,null,null,null,null,"279 Monthly"]
[null,null,null,null,null,null,null,null,null,null,null,null,null,null,null,null,null,null,null,null,null,"282 Monthly"]
[null,null,null,null,null,null,null,null,null,null,null,null,null,null,null,null,null,null,null,null,null,"284 Monthly"]
[null,null,null,null,null,null,null,null,null,null,null,null,null,null,null,null,null,null,null,null,null,"284 Monthly BWC MSL"]
[null,null,null,null,null,null,null,null,null,null,null,null,null,null,null,null,null,null,null,null,null,"284 Monthly Pharmacy"]
[null,null,null,null,null,null,null,null,null,null,null,null,null,null,null,null,null,null,null,null,null,"285 Monthly"]
[null,null,null,null,null,null,null,null,null,null,null,null,null,null,null,null,null,null,null,null,null,"287 Monthly"]
[null,null,null,null,null,null,null,null,null,null,null,null,null,null,null,null,null,null,null,null,null,"289 Monthly"]
[null,null,null,null,null,null,null,null,null,null,null,null,null,null,null,null,null,null,null,null,null,"290 Monthly"]
[null,null,null,null,null,null,null,null,null,null,null,null,null,null,null,null,null,null,null,null,null,"290 Monthly NWLP"]
[null,null,null,null,null,null,null,null,null,null,null,null,null,null,null,null,null,null,null,null,null,"292 Monthly"]
[null,null,null,null,null,null,null,null,null,null,null,null,null,null,null,null,null,null,null,null,null,"293 Monthly"]
[null,null,null,null,null,null,null,null,null,null,null,null,null,null,null,null,null,null,null,null,null,"294 Monthly"]
[null,null,null,null,null,null,null,null,null,null,null,null,null,null,null,null,null,null,null,null,null,"295 Monthly"]
[null,null,null,null,null,null,null,null,null,null,null,null,null,null,null,null,null,null,null,null,null,"297 Monthly"]
[null,null,null,null,null,null,null,null,null,null,null,null,null,null,null,null,null,null,null,null,null,"297 Mthly QE Facilities Ltd"]
[null,null,null,null,null,null,null,null,null,null,null,null,null,null,null,null,null,null,null,null,null,"298 GP Confed Monthly"]
[null,null,null,null,null,null,null,null,null,null,null,null,null,null,null,null,null,null,null,null,null,"298 Monthly"]
[null,null,null,null,null,null,null,null,null,null,null,null,null,null,null,null,null,null,null,null,null,"298 Monthly Deanery"]
[null,null,null,null,null,null,null,null,null,null,null,null,null,null,null,null,null,null,null,null,null,"298 Monthly Hospice"]
[null,null,null,null,null,null,null,null,null,null,null,null,null,null,null,null,null,null,null,null,null,"298 Monthly Leeds Hospitals Charity"]
[null,null,null,null,null,null,null,null,null,null,null,null,null,null,null,null,null,null,null,null,null,"301 Monthly"]
[null,null,null,null,null,null,null,null,null,null,null,null,null,null,null,null,null,null,null,null,null,"301 Monthly SLHF"]
[null,null,null,null,null,null,null,null,null,null,null,null,null,null,null,null,null,null,null,null,null,"302 Monthly"]
[null,null,null,null,null,null,null,null,null,null,null,null,null,null,null,null,null,null,null,null,null,"302 Monthly Hospice"]
[null,null,null,null,null,null,null,null,null,null,null,null,null,null,null,null,null,null,null,null,null,"303 Monthly"]
[null,null,null,null,null,null,null,null,null,null,null,null,null,null,null,null,null,null,null,null,null,"304 Monthly"]
[null,null,null,null,null,null,null,null,null,null,null,null,null,null,null,null,null,null,null,null,null,"304 Monthly Charity Payroll"]
[null,null,null,null,null,null,null,null,null,null,null,null,null,null,null,null,null,null,null,null,null,"304 Monthly Dialysis Services"]
[null,null,null,null,null,null,null,null,null,null,null,null,null,null,null,null,null,null,null,null,null,"304 Monthly Facilities"]
[null,null,null,null,null,null,null,null,null,null,null,null,null,null,null,null,null,null,null,null,null,"304 Monthly Pharmacy QEHB"]
[null,null,null,null,null,null,null,null,null,null,null,null,null,null,null,null,null,null,null,null,null,"306 Monthly"]
[null,null,null,null,null,null,null,null,null,null,null,null,null,null,null,null,null,null,null,null,null,"308 Monthly"]
[null,null,null,null,null,null,null,null,null,null,null,null,null,null,null,null,null,null,null,null,null,"309 Monthly"]
[null,null,null,null,null,null,null,null,null,null,null,null,null,null,null,null,null,null,null,null,null,"310 Monthly"]
[null,null,null,null,null,null,null,null,null,null,null,null,null,null,null,null,null,null,null,null,null,"311 Monthly"]
[null,null,null,null,null,null,null,null,null,null,null,null,null,null,null,null,null,null,null,null,null,"312 Monthly"]
[null,null,null,null,null,null,null,null,null,null,null,null,null,null,null,null,null,null,null,null,null,"313 Monthly"]
[null,null,null,null,null,null,null,null,null,null,null,null,null,null,null,null,null,null,null,null,null,"317 Monthly"]
[null,null,null,null,null,null,null,null,null,null,null,null,null,null,null,null,null,null,null,null,null,"318 Monthly"]
[null,null,null,null,null,null,null,null,null,null,null,null,null,null,null,null,null,null,null,null,null,"318 Monthly Subco"]
[null,null,null,null,null,null,null,null,null,null,null,null,null,null,null,null,null,null,null,null,null,"319 Monthly"]
[null,null,null,null,null,null,null,null,null,null,null,null,null,null,null,null,null,null,null,null,null,"319 Monthly NHFML"]
[null,null,null,null,null,null,null,null,null,null,null,null,null,null,null,null,null,null,null,null,null,"319 Monthly NPC"]
[null,null,null,null,null,null,null,null,null,null,null,null,null,null,null,null,null,null,null,null,null,"320 Monthly"]
[null,null,null,null,null,null,null,null,null,null,null,null,null,null,null,null,null,null,null,null,null,"320 Monthly DHS Ltd"]
[null,null,null,null,null,null,null,null,null,null,null,null,null,null,null,null,null,null,null,null,null,"321 Monthly"]
[null,null,null,null,null,null,null,null,null,null,null,null,null,null,null,null,null,null,null,null,null,"323 Monthly"]
[null,null,null,null,null,null,null,null,null,null,null,null,null,null,null,null,null,null,null,null,null,"325 Monthly"]
[null,null,null,null,null,null,null,null,null,null,null,null,null,null,null,null,null,null,null,null,null,"326 Monthly"]
[null,null,null,null,null,null,null,null,null,null,null,null,null,null,null,null,null,null,null,null,null,"327 Monthly"]
[null,null,null,null,null,null,null,null,null,null,null,null,null,null,null,null,null,null,null,null,null,"328 Healthcare Monthly"]
[null,null,null,null,null,null,null,null,null,null,null,null,null,null,null,null,null,null,null,null,null,"328 Monthly"]
[null,null,null,null,null,null,null,null,null,null,null,null,null,null,null,null,null,null,null,null,null,"331 Monthly"]
[null,null,null,null,null,null,null,null,null,null,null,null,null,null,null,null,null,null,null,null,null,"333 Monthly"]
[null,null,null,null,null,null,null,null,null,null,null,null,null,null,null,null,null,null,null,null,null,"333 Monthly QTS"]
[null,null,null,null,null,null,null,null,null,null,null,null,null,null,null,null,null,null,null,null,null,"334 Monthly"]
[null,null,null,null,null,null,null,null,null,null,null,null,null,null,null,null,null,null,null,null,null,"335 Monthly"]
[null,null,null,null,null,null,null,null,null,null,null,null,null,null,null,null,null,null,null,null,null,"337 Monthly"]
[null,null,null,null,null,null,null,null,null,null,null,null,null,null,null,null,null,null,null,null,null,"338 Monthly"]
[null,null,null,null,null,null,null,null,null,null,null,null,null,null,null,null,null,null,null,null,null,"339 Monthly"]
[null,null,null,null,null,null,null,null,null,null,null,null,null,null,null,null,null,null,null,null,null,"340 Monthly"]
[null,null,null,null,null,null,null,null,null,null,null,null,null,null,null,null,null,null,null,null,null,"340 Monthly NEASUS"]
[null,null,null,null,null,null,null,null,null,null,null,null,null,null,null,null,null,null,null,null,null,"342 Monthly"]
[null,null,null,null,null,null,null,null,null,null,null,null,null,null,null,null,null,null,null,null,null,"343 Monthly M01 Paid"]
[null,null,null,null,null,null,null,null,null,null,null,null,null,null,null,null,null,null,null,null,null,"344 Monthly"]
[null,null,null,null,null,null,null,null,null,null,null,null,null,null,null,null,null,null,null,null,null,"344 Monthly 2Gether SS"]
[null,null,null,null,null,null,null,null,null,null,null,null,null,null,null,null,null,null,null,null,null,"345 Monthly"]
[null,null,null,null,null,null,null,null,null,null,null,null,null,null,null,null,null,null,null,null,null,"345 Monthly NTH Solutions LLP"]
[null,null,null,null,null,null,null,null,null,null,null,null,null,null,null,null,null,null,null,null,null,"345 Monthly Optimus Health LTD"]
[null,null,null,null,null,null,null,null,null,null,null,null,null,null,null,null,null,null,null,null,null,"346 Monthly"]
[null,null,null,null,null,null,null,null,null,null,null,null,null,null,null,null,null,null,null,null,null,"347 Monthly"]
[null,null,null,null,null,null,null,null,null,null,null,null,null,null,null,null,null,null,null,null,null,"348 Monthly Southern Health"]
[null,null,null,null,null,null,null,null,null,null,null,null,null,null,null,null,null,null,null,null,null,"349 Monthly"]
[null,null,null,null,null,null,null,null,null,null,null,null,null,null,null,null,null,null,null,null,null,"350 Monthly MCT"]
[null,null,null,null,null,null,null,null,null,null,null,null,null,null,null,null,null,null,null,null,null,"351 Monthly"]
[null,null,null,null,null,null,null,null,null,null,null,null,null,null,null,null,null,null,null,null,null,"352 Monthly Bury Hospice"]
[null,null,null,null,null,null,null,null,null,null,null,null,null,null,null,null,null,null,null,null,null,"352 Monthly Dr Kershaw's Hospice"]
[null,null,null,null,null,null,null,null,null,null,null,null,null,null,null,null,null,null,null,null,null,"352 Monthly Springhill Hospice"]
[null,null,null,null,null,null,null,null,null,null,null,null,null,null,null,null,null,null,null,null,null,"354 Monthly Pay"]
[null,null,null,null,null,null,null,null,null,null,null,null,null,null,null,null,null,null,null,null,null,"356 Monthly"]
[null,null,null,null,null,null,null,null,null,null,null,null,null,null,null,null,null,null,null,null,null,"357 Monthly"]
[null,null,null,null,null,null,null,null,null,null,null,null,null,null,null,null,null,null,null,null,null,"358 Monthly"]
[null,null,null,null,null,null,null,null,null,null,null,null,null,null,null,null,null,null,null,null,null,"359 Monthly"]
[null,null,null,null,null,null,null,null,null,null,null,null,null,null,null,null,null,null,null,null,null,"360 Monthly"]
[null,null,null,null,null,null,null,null,null,null,null,null,null,null,null,null,null,null,null,null,null,"361 Monthly"]
[null,null,null,null,null,null,null,null,null,null,null,null,null,null,null,null,null,null,null,null,null,"361 Monthly ENH Pharma"]
[null,null,null,null,null,null,null,null,null,null,null,null,null,null,null,null,null,null,null,null,null,"362 Monthly"]
[null,null,null,null,null,null,null,null,null,null,null,null,null,null,null,null,null,null,null,null,null,"363 Monthly"]
[null,null,null,null,null,null,null,null,null,null,null,null,null,null,null,null,null,null,null,null,null,"364 Monthly"]
[null,null,null,null,null,null,null,null,null,null,null,null,null,null,null,null,null,null,null,null,null,"365 Monthly"]
[null,null,null,null,null,null,null,null,null,null,null,null,null,null,null,null,null,null,null,null,null,"367 Monthly"]
[null,null,null,null,null,null,null,null,null,null,null,null,null,null,null,null,null,null,null,null,null,"369 Monthly"]
[null,null,null,null,null,null,null,null,null,null,null,null,null,null,null,null,null,null,null,null,null,"370 Monthly"]
[null,null,null,null,null,null,null,null,null,null,null,null,null,null,null,null,null,null,null,null,null,"371 Monthly BHT"]
[null,null,null,null,null,null,null,null,null,null,null,null,null,null,null,null,null,null,null,null,null,"372 Monthly"]
[null,null,null,null,null,null,null,null,null,null,null,null,null,null,null,null,null,null,null,null,null,"372 WOS Monthly"]
[null,null,null,null,null,null,null,null,null,null,null,null,null,null,null,null,null,null,null,null,null,"373 Monthly"]
[null,null,null,null,null,null,null,null,null,null,null,null,null,null,null,null,null,null,null,null,null,"374 Monthly"]
[null,null,null,null,null,null,null,null,null,null,null,null,null,null,null,null,null,null,null,null,null,"376 Monthly"]
[null,null,null,null,null,null,null,null,null,null,null,null,null,null,null,null,null,null,null,null,null,"377 Monthly"]
[null,null,null,null,null,null,null,null,null,null,null,null,null,null,null,null,null,null,null,null,null,"378 Monthly"]
[null,null,null,null,null,null,null,null,null,null,null,null,null,null,null,null,null,null,null,null,null,"379 Monthly"]
[null,null,null,null,null,null,null,null,null,null,null,null,null,null,null,null,null,null,null,null,null,"380 Monthly"]
[null,null,null,null,null,null,null,null,null,null,null,null,null,null,null,null,null,null,null,null,null,"381 Monthly"]
[null,null,null,null,null,null,null,null,null,null,null,null,null,null,null,null,null,null,null,null,null,"382 Monthly"]
[null,null,null,null,null,null,null,null,null,null,null,null,null,null,null,null,null,null,null,null,null,"382 Monthly BFWMan"]
[null,null,null,null,null,null,null,null,null,null,null,null,null,null,null,null,null,null,null,null,null,"383 Monthly"]
[null,null,null,null,null,null,null,null,null,null,null,null,null,null,null,null,null,null,null,null,null,"384 Monthly"]
[null,null,null,null,null,null,null,null,null,null,null,null,null,null,null,null,null,null,null,null,null,"384 Monthly HPL"]
[null,null,null,null,null,null,null,null,null,null,null,null,null,null,null,null,null,null,null,null,null,"386 Monthly"]
[null,null,null,null,null,null,null,null,null,null,null,null,null,null,null,null,null,null,null,null,null,"386 Monthly Simply Serve Ltd"]
[null,null,null,null,null,null,null,null,null,null,null,null,null,null,null,null,null,null,null,null,null,"387 Monthly"]
[null,null,null,null,null,null,null,null,null,null,null,null,null,null,null,null,null,null,null,null,null,"388 Monthly"]
[null,null,null,null,null,null,null,null,null,null,null,null,null,null,null,null,null,null,null,null,null,"388 Monthly Pharmacy"]
[null,null,null,null,null,null,null,null,null,null,null,null,null,null,null,null,null,null,null,null,null,"389 Monthly"]
[null,null,null,null,null,null,null,null,null,null,null,null,null,null,null,null,null,null,null,null,null,"390 Monthly"]
[null,null,null,null,null,null,null,null,null,null,null,null,null,null,null,null,null,null,null,null,null,"391 Monthly"]
[null,null,null,null,null,null,null,null,null,null,null,null,null,null,null,null,null,null,null,null,null,"391 Monthly Property Services"]
[null,null,null,null,null,null,null,null,null,null,null,null,null,null,null,null,null,null,null,null,null,"391 Monthly RFL Dispensary Services Limited"]
[null,null,null,null,null,null,null,null,null,null,null,null,null,null,null,null,null,null,null,null,null,"392 Monthly"]
[null,null,null,null,null,null,null,null,null,null,null,null,null,null,null,null,null,null,null,null,null,"393 Monthly"]
[null,null,null,null,null,null,null,null,null,null,null,null,null,null,null,null,null,null,null,null,null,"394 Monthly"]
[null,null,null,null,null,null,null,null,null,null,null,null,null,null,null,null,null,null,null,null,null,"395 Monthly"]
[null,null,null,null,null,null,null,null,null,null,null,null,null,null,null,null,null,null,null,null,null,"396 Monthly"]
[null,null,null,null,null,null,null,null,null,null,null,null,null,null,null,null,null,null,null,null,null,"405 Monthly"]
[null,null,null,null,null,null,null,null,null,null,null,null,null,null,null,null,null,null,null,null,null,"407 Monthly"]
[null,null,null,null,null,null,null,null,null,null,null,null,null,null,null,null,null,null,null,null,null,"408 Monthly"]
[null,null,null,null,null,null,null,null,null,null,null,null,null,null,null,null,null,null,null,null,null,"409 Monthly"]
[null,null,null,null,null,null,null,null,null,null,null,null,null,null,null,null,null,null,null,null,null,"409 SHK MEDIREST MONTHLY"]
[null,null,null,null,null,null,null,null,null,null,null,null,null,null,null,null,null,null,null,null,null,"410 Monthly"]
[null,null,null,null,null,null,null,null,null,null,null,null,null,null,null,null,null,null,null,null,null,"411 Monthly"]
[null,null,null,null,null,null,null,null,null,null,null,null,null,null,null,null,null,null,null,null,null,"412 Monthly"]
[null,null,null,null,null,null,null,null,null,null,null,null,null,null,null,null,null,null,null,null,null,"413 Monthly"]
[null,null,null,null,null,null,null,null,null,null,null,null,null,null,null,null,null,null,null,null,null,"415 Monthly"]
[null,null,null,null,null,null,null,null,null,null,null,null,null,null,null,null,null,null,null,null,null,"416 Monthly"]
[null,null,null,null,null,null,null,null,null,null,null,null,null,null,null,null,null,null,null,null,null,"418 Monthly"]
[null,null,null,null,null,null,null,null,null,null,null,null,null,null,null,null,null,null,null,null,null,"419 Monthly"]
[null,null,null,null,null,null,null,null,null,null,null,null,null,null,null,null,null,null,null,null,null,"419 Monthly YTH Facilities Mgmt LLP"]
[null,null,null,null,null,null,null,null,null,null,null,null,null,null,null,null,null,null,null,null,null,"421 Monthly"]
[null,null,null,null,null,null,null,null,null,null,null,null,null,null,null,null,null,null,null,null,null,"421 Monthly HHFM"]
[null,null,null,null,null,null,null,null,null,null,null,null,null,null,null,null,null,null,null,null,null,"423 Monthly"]
[null,null,null,null,null,null,null,null,null,null,null,null,null,null,null,null,null,null,null,null,null,"423 Monthly AGH Solutions"]
[null,null,null,null,null,null,null,null,null,null,null,null,null,null,null,null,null,null,null,null,null,"425 Monthly"]
[null,null,null,null,null,null,null,null,null,null,null,null,null,null,null,null,null,null,null,null,null,"426 Monthly"]
[null,null,null,null,null,null,null,null,null,null,null,null,null,null,null,null,null,null,null,null,null,"427 Monthly"]
[null,null,null,null,null,null,null,null,null,null,null,null,null,null,null,null,null,null,null,null,null,"427 Sulis Monthly"]
[null,null,null,null,null,null,null,null,null,null,null,null,null,null,null,null,null,null,null,null,null,"430 Monthly"]
[null,null,null,null,null,null,null,null,null,null,null,null,null,null,null,null,null,null,null,null,null,"430A Monthly"]
[null,null,null,null,null,null,null,null,null,null,null,null,null,null,null,null,null,null,null,null,null,"432 Monthly"]
[null,null,null,null,null,null,null,null,null,null,null,null,null,null,null,null,null,null,null,null,null,"434 Monthly"]
[null,null,null,null,null,null,null,null,null,null,null,null,null,null,null,null,null,null,null,null,null,"435 Monthly"]
[null,null,null,null,null,null,null,null,null,null,null,null,null,null,null,null,null,null,null,null,null,"436 Monthly"]
[null,null,null,null,null,null,null,null,null,null,null,null,null,null,null,null,null,null,null,null,null,"436 SSL Monthly"]
[null,null,null,null,null,null,null,null,null,null,null,null,null,null,null,null,null,null,null,null,null,"437 Monthly"]
[null,null,null,null,null,null,null,null,null,null,null,null,null,null,null,null,null,null,null,null,null,"438 Monthly"]
[null,null,null,null,null,null,null,null,null,null,null,null,null,null,null,null,null,null,null,null,null,"438 Monthly Pharmacy"]
[null,null,null,null,null,null,null,null,null,null,null,null,null,null,null,null,null,null,null,null,null,"439 Monthly"]
[null,null,null,null,null,null,null,null,null,null,null,null,null,null,null,null,null,null,null,null,null,"439 Monthly Synchronicity"]
[null,null,null,null,null,null,null,null,null,null,null,null,null,null,null,null,null,null,null,null,null,"441 Monthly"]
[null,null,null,null,null,null,null,null,null,null,null,null,null,null,null,null,null,null,null,null,null,"443 Monthly"]
[null,null,null,null,null,null,null,null,null,null,null,null,null,null,null,null,null,null,null,null,null,"444 Monthly"]
[null,null,null,null,null,null,null,null,null,null,null,null,null,null,null,null,null,null,null,null,null,"445 Monthly"]
[null,null,null,null,null,null,null,null,null,null,null,null,null,null,null,null,null,null,null,null,null,"448_644 Monthly Provider"]
[null,null,null,null,null,null,null,null,null,null,null,null,null,null,null,null,null,null,null,null,null,"449_746 Monthly"]
[null,null,null,null,null,null,null,null,null,null,null,null,null,null,null,null,null,null,null,null,null,"450 Monthly"]
[null,null,null,null,null,null,null,null,null,null,null,null,null,null,null,null,null,null,null,null,null,"451 Monthly"]
[null,null,null,null,null,null,null,null,null,null,null,null,null,null,null,null,null,null,null,null,null,"453 Monthly"]
[null,null,null,null,null,null,null,null,null,null,null,null,null,null,null,null,null,null,null,null,null,"455 Monthly"]
[null,null,null,null,null,null,null,null,null,null,null,null,null,null,null,null,null,null,null,null,null,"457 Monthly"]
[null,null,null,null,null,null,null,null,null,null,null,null,null,null,null,null,null,null,null,null,null,"458 Monthly"]
[null,null,null,null,null,null,null,null,null,null,null,null,null,null,null,null,null,null,null,null,null,"461 Monthly BNSSG CCG"]
[null,null,null,null,null,null,null,null,null,null,null,null,null,null,null,null,null,null,null,null,null,"462 Monthly"]
[null,null,null,null,null,null,null,null,null,null,null,null,null,null,null,null,null,null,null,null,null,"465 Monthly"]
[null,null,null,null,null,null,null,null,null,null,null,null,null,null,null,null,null,null,null,null,null,"467 Monthly"]
[null,null,null,null,null,null,null,null,null,null,null,null,null,null,null,null,null,null,null,null,null,"468 Monthly"]
[null,null,null,null,null,null,null,null,null,null,null,null,null,null,null,null,null,null,null,null,null,"469 Monthly"]
[null,null,null,null,null,null,null,null,null,null,null,null,null,null,null,null,null,null,null,null,null,"470 Monthly"]
[null,null,null,null,null,null,null,null,null,null,null,null,null,null,null,null,null,null,null,null,null,"471 Monthly CICB"]
[null,null,null,null,null,null,null,null,null,null,null,null,null,null,null,null,null,null,null,null,null,"473 Knowsley CCG Monthly"]
[null,null,null,null,null,null,null,null,null,null,null,null,null,null,null,null,null,null,null,null,null,"475 Monthly CCG"]
[null,null,null,null,null,null,null,null,null,null,null,null,null,null,null,null,null,null,null,null,null,"482 BOB ICB"]
[null,null,null,null,null,null,null,null,null,null,null,null,null,null,null,null,null,null,null,null,null,"486 Sefton CCG Monthly"]
[null,null,null,null,null,null,null,null,null,null,null,null,null,null,null,null,null,null,null,null,null,"487 Monthly"]
[null,null,null,null,null,null,null,null,null,null,null,null,null,null,null,null,null,null,null,null,null,"488 St Helens CCG Monthly"]
[null,null,null,null,null,null,null,null,null,null,null,null,null,null,null,null,null,null,null,null,null,"490 Monthly"]
[null,null,null,null,null,null,null,null,null,null,null,null,null,null,null,null,null,null,null,null,null,"491 Monthly"]
[null,null,null,null,null,null,null,null,null,null,null,null,null,null,null,null,null,null,null,null,null,"492 Warrington CCG Monthly"]
[null,null,null,null,null,null,null,null,null,null,null,null,null,null,null,null,null,null,null,null,null,"493 Monthly NHS Cheshire CCG"]
[null,null,null,null,null,null,null,null,null,null,null,null,null,null,null,null,null,null,null,null,null,"495 Monthly"]
[null,null,null,null,null,null,null,null,null,null,null,null,null,null,null,null,null,null,null,null,null,"497 Monthly"]
[null,null,null,null,null,null,null,null,null,null,null,null,null,null,null,null,null,null,null,null,null,"498 Monthly"]
[null,null,null,null,null,null,null,null,null,null,null,null,null,null,null,null,null,null,null,null,null,"514 Monthly Mid and South Essex ICB"]
[null,null,null,null,null,null,null,null,null,null,null,null,null,null,null,null,null,null,null,null,null,"529 Monthly"]
[null,null,null,null,null,null,null,null,null,null,null,null,null,null,null,null,null,null,null,null,null,"644 NHS Cambs & P'boro ICB"]
[null,null,null,null,null,null,null,null,null,null,null,null,null,null,null,null,null,null,null,null,null,"650 Monthly SNEE ICB"]
[null,null,null,null,null,null,null,null,null,null,null,null,null,null,null,null,null,null,null,null,null,"651 Monthly West Essex CCG"]
[null,null,null,null,null,null,null,null,null,null,null,null,null,null,null,null,null,null,null,null,null,"654 Monthly Mid & South Essex ICB"]
[null,null,null,null,null,null,null,null,null,null,null,null,null,null,null,null,null,null,null,null,null,"708 Monthly Mid & South Essex ICB"]
[null,null,null,null,null,null,null,null,null,null,null,null,null,null,null,null,null,null,null,null,null,"710 Monthly SNEE ICB"]
[null,null,null,null,null,null,null,null,null,null,null,null,null,null,null,null,null,null,null,null,null,"768 Monthly Brighton & Hove CCG"]
[null,null,null,null,null,null,null,null,null,null,null,null,null,null,null,null,null,null,null,null,null,"768 Monthly East Sussex CCG"]
[null,null,null,null,null,null,null,null,null,null,null,null,null,null,null,null,null,null,null,null,null,"768 Monthly West Sussex CCG"]
[null,null,null,null,null,null,null,null,null,null,null,null,null,null,null,null,null,null,null,null,null,"779 Monthly HRCH"]
[null,null,null,null,null,null,null,null,null,null,null,null,null,null,null,null,null,null,null,null,null,"798 Monthly"]
[null,null,null,null,null,null,null,null,null,null,null,null,null,null,null,null,null,null,null,null,null,"798_366 Monthly Primrose Hospice"]
[null,null,null,null,null,null,null,null,null,null,null,null,null,null,null,null,null,null,null,null,null,"806 Monthly"]
[null,null,null,null,null,null,null,null,null,null,null,null,null,null,null,null,null,null,null,null,null,"807 Monthly1"]
[null,null,null,null,null,null,null,null,null,null,null,null,null,null,null,null,null,null,null,null,null,"809 Monthly"]
[null,null,null,null,null,null,null,null,null,null,null,null,null,null,null,null,null,null,null,null,null,"810 CHCP CIC"]
[null,null,null,null,null,null,null,null,null,null,null,null,null,null,null,null,null,null,null,null,null,"811_504 Monthly"]
[null,null,null,null,null,null,null,null,null,null,null,null,null,null,null,null,null,null,null,null,null,"812_645 Monthly"]
[null,null,null,null,null,null,null,null,null,null,null,null,null,null,null,null,null,null,null,null,null,"813_748 Monthly Provider"]
[null,null,null,null,null,null,null,null,null,null,null,null,null,null,null,null,null,null,null,null,null,"814 Monthly"]
[null,null,null,null,null,null,null,null,null,null,null,null,null,null,null,null,null,null,null,null,null,"814 Monthly Fairways"]
[null,null,null,null,null,null,null,null,null,null,null,null,null,null,null,null,null,null,null,null,null,"816 Monthly"]
[null,null,null,null,null,null,null,null,null,null,null,null,null,null,null,null,null,null,null,null,null,"818_667 Monthly"]
[null,null,null,null,null,null,null,null,null,null,null,null,null,null,null,null,null,null,null,null,null,"820_775 Monthly"]
[null,null,null,null,null,null,null,null,null,null,null,null,null,null,null,null,null,null,null,null,null,"824 Monthly"]
[null,null,null,null,null,null,null,null,null,null,null,null,null,null,null,null,null,null,null,null,null,"825 Monthly"]
[null,null,null,null,null,null,null,null,null,null,null,null,null,null,null,null,null,null,null,null,null,"826 Monthly Closed Scheme"]
[null,null,null,null,null,null,null,null,null,null,null,null,null,null,null,null,null,null,null,null,null,"826_595 Monthly"]
[null,null,null,null,null,null,null,null,null,null,null,null,null,null,null,null,null,null,null,null,null,"828 Provide C.I.C."]
[null,null,null,null,null,null,null,null,null,null,null,null,null,null,null,null,null,null,null,null,null,"828 Provide IP"]
[null,null,null,null,null,null,null,null,null,null,null,null,null,null,null,null,null,null,null,null,null,"829 Monthly"]
[null,null,null,null,null,null,null,null,null,null,null,null,null,null,null,null,null,null,null,null,null,"832_604 Monthly"]
[null,null,null,null,null,null,null,null,null,null,null,null,null,null,null,null,null,null,null,null,null,"832_604 Monthly IP"]
[null,null,null,null,null,null,null,null,null,null,null,null,null,null,null,null,null,null,null,null,null,"832_ASC Monthly"]
[null,null,null,null,null,null,null,null,null,null,null,null,null,null,null,null,null,null,null,null,null,"832_SHWD MONTHLY"]
[null,null,null,null,null,null,null,null,null,null,null,null,null,null,null,null,null,null,null,null,null,"833_676 Monthly"]
[null,null,null,null,null,null,null,null,null,null,null,null,null,null,null,null,null,null,null,null,null,"835 Monthly"]
[null,null,null,null,null,null,null,null,null,null,null,null,null,null,null,null,null,null,null,null,null,"837 Monthly BoltonCP"]
[null,null,null,null,null,null,null,null,null,null,null,null,null,null,null,null,null,null,null,null,null,"839_547 NCH & C"]
[null,null,null,null,null,null,null,null,null,null,null,null,null,null,null,null,null,null,null,null,null,"840 Monthly"]
[null,null,null,null,null,null,null,null,null,null,null,null,null,null,null,null,null,null,null,null,null,"842_585 Derby Com HS NHS Trust"]
[null,null,null,null,null,null,null,null,null,null,null,null,null,null,null,null,null,null,null,null,null,"843 Monthly"]
[null,null,null,null,null,null,null,null,null,null,null,null,null,null,null,null,null,null,null,null,null,"844_660 Monthly Demerge"]
[null,null,null,null,null,null,null,null,null,null,null,null,null,null,null,null,null,null,null,null,null,"845 Locala Monthly"]
[null,null,null,null,null,null,null,null,null,null,null,null,null,null,null,null,null,null,null,null,null,"846 Monthly"]
[null,null,null,null,null,null,null,null,null,null,null,null,null,null,null,null,null,null,null,null,null,"847 SLD Ltd"]
[null,null,null,null,null,null,null,null,null,null,null,null,null,null,null,null,null,null,null,null,null,"847 Spectrum"]
[null,null,null,null,null,null,null,null,null,null,null,null,null,null,null,null,null,null,null,null,null,"848_505 BHC Monthly"]
[null,null,null,null,null,null,null,null,null,null,null,null,null,null,null,null,null,null,null,null,null,"848_505 BHC Monthly IP"]
[null,null,null,null,null,null,null,null,null,null,null,null,null,null,null,null,null,null,null,null,null,"849 Monthly 1 East Coast Community"]
[null,null,null,null,null,null,null,null,null,null,null,null,null,null,null,null,null,null,null,null,null,"849 Monthly 2 East Coast Community"]
[null,null,null,null,null,null,null,null,null,null,null,null,null,null,null,null,null,null,null,null,null,"853 Halton CCG Monthly"]
[null,null,null,null,null,null,null,null,null,null,null,null,null,null,null,null,null,null,null,null,null,"857 Merged Monthly"]
[null,null,null,null,null,null,null,null,null,null,null,null,null,null,null,null,null,null,null,null,null,"869 Monthly"]
[null,null,null,null,null,null,null,null,null,null,null,null,null,null,null,null,null,null,null,null,null,"877 Monthly"]
[null,null,null,null,null,null,null,null,null,null,null,null,null,null,null,null,null,null,null,null,null,"880 Monthly"]
[null,null,null,null,null,null,null,null,null,null,null,null,null,null,null,null,null,null,null,null,null,"891 Monthly"]
[null,null,null,null,null,null,null,null,null,null,null,null,null,null,null,null,null,null,null,null,null,"892 Monthly"]
[null,null,null,null,null,null,null,null,null,null,null,null,null,null,null,null,null,null,null,null,null,"893 Monthly"]
[null,null,null,null,null,null,null,null,null,null,null,null,null,null,null,null,null,null,null,null,null,"894 Monthly"]
[null,null,null,null,null,null,null,null,null,null,null,null,null,null,null,null,null,null,null,null,null,"895 GMSS Monthly"]
[null,null,null,null,null,null,null,null,null,null,null,null,null,null,null,null,null,null,null,null,null,"895 Monthly"]
[null,null,null,null,null,null,null,null,null,null,null,null,null,null,null,null,null,null,null,null,null,"896 Monthly"]
[null,null,null,null,null,null,null,null,null,null,null,null,null,null,null,null,null,null,null,null,null,"907 Monthly"]
[null,null,null,null,null,null,null,null,null,null,null,null,null,null,null,null,null,null,null,null,null,"912 Monthly"]
[null,null,null,null,null,null,null,null,null,null,null,null,null,null,null,null,null,null,null,null,null,"914 Monthly BSA"]
[null,null,null,null,null,null,null,null,null,null,null,null,null,null,null,null,null,null,null,null,null,"914 Monthly Grads"]
[null,null,null,null,null,null,null,null,null,null,null,null,null,null,null,null,null,null,null,null,null,"914 Monthly Hosted"]
[null,null,null,null,null,null,null,null,null,null,null,null,null,null,null,null,null,null,null,null,null,"918 Monthly"]
[null,null,null,null,null,null,null,null,null,null,null,null,null,null,null,null,null,null,null,null,null,"919 Monthly"]
[null,null,null,null,null,null,null,null,null,null,null,null,null,null,null,null,null,null,null,null,null,"922 Monthly"]
[null,null,null,null,null,null,null,null,null,null,null,null,null,null,null,null,null,null,null,null,null,"926 Monthly"]
[null,null,null,null,null,null,null,null,null,null,null,null,null,null,null,null,null,null,null,null,null,"928 Monthly"]
[null,null,null,null,null,null,null,null,null,null,null,null,null,null,null,null,null,null,null,null,null,"933 Monthly"]
[null,null,null,null,null,null,null,null,null,null,null,null,null,null,null,null,null,null,null,null,null,"939 Monthly"]
[null,null,null,null,null,null,null,null,null,null,null,null,null,null,null,null,null,null,null,null,null,"940 Monthly"]
[null,null,null,null,null,null,null,null,null,null,null,null,null,null,null,null,null,null,null,null,null,"942 Monthly North Staffs GP Federation Limited"]
[null,null,null,null,null,null,null,null,null,null,null,null,null,null,null,null,null,null,null,null,null,"942 Monthly STW ICB"]
[null,null,null,null,null,null,null,null,null,null,null,null,null,null,null,null,null,null,null,null,null,"980 Monthly HRA"]
[null,null,null,null,null,null,null,null,null,null,null,null,null,null,null,null,null,null,null,null,null,"983-BSW Monthly"]
[null,null,null,null,null,null,null,null,null,null,null,null,null,null,null,null,null,null,null,null,null,"984 Monthly BACS HEE"]
[null,null,null,null,null,null,null,null,null,null,null,null,null,null,null,null,null,null,null,null,null,"985 Monthly"]
[null,null,null,null,null,null,null,null,null,null,null,null,null,null,null,null,null,null,null,null,null,"986 Monthly"]
[null,null,null,null,null,null,null,null,null,null,null,null,null,null,null,null,null,null,null,null,null,"987 Monthly"]
[null,null,null,null,null,null,null,null,null,null,null,null,null,null,null,null,null,null,null,null,null,"988 Monthly Mid & South Essex ICB"]
[null,null,null,null,null,null,null,null,null,null,null,null,null,null,null,null,null,null,null,null,null,"989 Monthly Mid & South Essex ICB"]
[null,null,null,null,null,null,null,null,null,null,null,null,null,null,null,null,null,null,null,null,null,"990 Monthly BACS CBA"]
[null,null,null,null,null,null,null,null,null,null,null,null,null,null,null,null,null,null,null,null,null,"994 East Leics & R Monthly BACS"]
[null,null,null,null,null,null,null,null,null,null,null,null,null,null,null,null,null,null,null,null,null,"994 LeicsCity Monthly BACS"]
[null,null,null,null,null,null,null,null,null,null,null,null,null,null,null,null,null,null,null,null,null,"994 WestLeics Monthly BACS"]
[null,null,null,null,null,null,null,null,null,null,null,null,null,null,null,null,null,null,null,null,null,"995 Monthly BACS NTDA"]
[null,null,null,null,null,null,null,null,null,null,null,null,null,null,null,null,null,null,null,null,null,"996 Monthly"]